bitfinex/quotes_SOLUSD_20241022
["timestamp","ask_amount","ask_price","bid_price","bid_amount"]
[1729562838721,21.7755,167.81,167.7,23.776884]
[1729562839312,21.7755,167.81,167.7,40.85192924]
[1729562840712,27.7346,167.81,167.7,23.776884]
[1729562840912,27.7346,167.81,167.69,29.97692885]
[1729562841504,21.7755,167.81,167.69,29.97692885]
[1729562841711,5.9595,167.8,167.69,29.97692885]
[1729562842215,21.7755,167.81,167.69,29.97692885]
[1729562842408,5.9599,167.79,167.69,29.97692885]
[1729562843408,5.9602,167.78,167.69,29.97692885]
[1729562843640,20.0,167.8,167.69,6.20004485]
[1729562843935,20.1,167.8,167.69,6.20004485]
[1729562844120,5.9609,167.76,167.69,6.20004485]
[1729562844503,5.9612,167.75,167.69,6.20004485]
[1729562844704,20.0,167.78,167.69,6.20004485]
[1729562844902,35.0986,167.8,167.69,6.20004485]
[1729562844903,5.9615,167.75,167.69,6.20004485]
[1729562845131,34.8986,167.8,167.69,6.20004485]
[1729562845324,5.9609,167.76,167.69,6.20004485]
[1729562847319,5.9615,167.75,167.69,6.20004485]
[1729562847710,14.8995,167.79,167.69,6.20004485]
[1729562847943,5.9617,167.74,167.69,6.20004485]
[1729562848229,5.9612,167.75,167.69,6.20004485]
[1729562848832,5.9616,167.74,167.69,6.20004485]
[1729562849034,22.021,167.81,167.7,23.776884]
[1729562849234,15.78,167.81,167.7,39.521484]
[1729562850028,21.7391,167.81,167.7,39.521484]
[1729562850626,5.9594,167.8,167.7,39.521484]
[1729562850829,15.78,167.81,167.7,39.521484]
[1729562851510,21.7391,167.81,167.7,39.521484]
[1729562852225,22.4165,167.85,167.71,6.0514]
[1729562852432,5.958,167.84,167.72,23.776884]
[1729562852621,5.9585,167.83,167.72,23.776884]
[1729562853627,5.9587,167.82,167.72,23.776884]
[1729562857810,5.9585,167.83,167.72,23.776884]
[1729562858533,5.9594,167.8,167.72,23.776884]
[1729562859521,22.7435836,167.89,167.77,23.776884]
[1729562859838,5.957,167.87,167.79,23.776884]
[1729562863242,20.0,167.88,167.79,23.776884]
[1729562864438,25.9568,167.88,167.79,23.776884]
[1729562864638,20.0,167.88,167.79,23.776884]
[1729562864838,5.957,167.87,167.79,23.776884]
[1729562865644,5.9574,167.86,167.76,21.5301]
[1729562865842,5.9574,167.86,167.77,23.776884]
[1729562867147,5.9584,167.83,167.76,15.1217]
[1729562867343,20.1,167.88,167.72,18.67337933]
[1729562867344,5.9588,167.82,167.72,28.77690777]
[1729562868742,5.9588,167.82,167.73,23.776884]
[1729562868955,20.0,167.88,167.75,23.776884]
[1729562869132,5.9573,167.86,167.75,23.776884]
[1729562870930,5.9569,167.87,167.79,23.776884]
[1729562872326,25.9566,167.88,167.79,23.776884]
[1729562874427,22.7436836,167.89,167.79,29.855784]
[1729562874932,0.6150836,167.89,167.79,29.855784]
[1729562875846,0.6150836,167.89,167.79,28.355784]
[1729562877936,6.5716836,167.89,167.79,28.355784]
[1729562878131,6.5716836,167.89,167.79,6.0789]
[1729562879228,6.5716836,167.89,167.8,23.776884]
[1729562882858,22.686,167.88,167.75,12.28960235]
[1729562883041,5.958,167.85,167.75,12.28960235]
[1729562884142,5.958,167.85,167.76,23.776884]
[1729562888050,5.9581,167.84,167.76,23.776884]
[1729562888452,5.9584,167.83,167.76,23.776884]
[1729562888744,5.9591,167.81,167.75,6.21930235]
[1729562889052,5.9587,167.82,167.74,15.9159]
[1729562890454,5.9587,167.82,167.73,23.776884]
[1729562890656,5.9597,167.8,167.72,6.22574346]
[1729562891250,14.8942,167.85,167.72,6.22574346]
[1729562891461,5.9588,167.82,167.72,6.22574346]
[1729562892047,22.686,167.88,167.75,10.92548937]
[1729562892270,22.5082,167.92,167.8,23.776884]
[1729562892470,22.5082,167.92,167.82,23.776884]
[1729562892781,16.2061,167.92,167.82,23.776884]
[1729562892949,22.2068,167.96,167.84,23.776884]
[1729562893267,5.9545,167.94,167.84,23.776884]
[1729562893458,5.9548,167.93,167.84,23.776884]
[1729562895255,22.3068,167.96,167.81,16.0123]
[1729562895564,5.9556,167.91,167.82,23.776884]
[1729562896568,0.1,167.94,167.82,23.776884]
[1729562896874,5.9559,167.9,167.82,23.776884]
[1729562897865,5.9554,167.92,167.82,23.776884]
[1729562898266,0.1,167.94,167.82,23.776884]
[1729562898469,5.9556,167.91,167.82,23.776884]
[1729562898852,20.0,167.95,167.82,23.776884]
[1729562899194,20.0,167.95,167.82,40.8287243]
[1729562899478,25.9553,167.92,167.82,23.776884]
[1729562899661,5.9556,167.91,167.82,23.776884]
[1729562902074,5.9556,167.91,167.82,40.8287243]
[1729562902654,20.0,167.95,167.82,40.8287243]
[1729562903004,5.9552,167.92,167.82,40.8287243]
[1729562903682,0.1,167.94,167.82,40.8287243]
[1729562903878,5.9561,167.9,167.82,40.8287243]
[1729562905088,5.9554,167.92,167.82,40.8287243]
[1729562906494,20.0,167.95,167.82,40.8287243]
[1729562906662,5.9547,167.94,167.82,40.8287243]
[1729562906862,5.9547,167.94,167.85,23.776884]
[1729562907085,5.9547,167.94,167.85,30.114984]
[1729562908090,22.2068,167.96,167.85,30.114984]
[1729562908689,5.9545,167.94,167.85,30.114984]
[1729562910870,28.1606,167.96,167.85,30.114984]
[1729562911074,5.9543,167.95,167.85,30.114984]
[1729562911589,5.9548,167.94,167.85,30.114984]
[1729562912297,5.9548,167.93,167.85,30.114984]
[1729562912597,5.9545,167.94,167.85,30.114984]
[1729562913996,5.9553,167.92,167.85,23.776884]
[1729562917291,20.0,167.95,167.85,23.776884]
[1729562917594,5.9548,167.93,167.85,23.776884]
[1729562917780,5.9553,167.92,167.84,10.91146053]
[1729562917965,5.9553,167.92,167.85,23.776884]
[1729562919201,20.0,167.95,167.85,23.776884]
[1729562919385,28.1606,167.96,167.87,10.91146053]
[1729562919573,22.2068,167.96,167.88,23.776884]
[1729562919896,5.9541,167.95,167.88,23.776884]
[1729562920405,22.2068,167.96,167.88,23.776884]
[1729562920778,28.1606,167.96,167.88,23.776884]
[1729562920997,5.9538,167.96,167.88,39.051484]
[1729562921214,16.4914,168.0,167.88,45.140184]
[1729562921372,5.9527,167.99,167.88,45.140184]
[1729562922581,16.4914,168.0,167.88,45.140184]
[1729562922776,22.4439,168.0,167.88,45.140184]
[1729562923513,16.4914,168.0,167.88,45.140184]
[1729562923699,5.9532,167.98,167.88,45.140184]
[1729562923999,5.9535,167.97,167.88,56.05164453]
[1729562924387,5.953,167.99,167.88,56.05164453]
[1729562924875,16.4914,168.0,167.88,56.05164453]
[1729562925076,5.9531,167.98,167.88,56.05164453]
[1729562926879,5.9536,167.97,167.88,56.05164453]
[1729562927091,20.0,167.99,167.86,10.91146053]
[1729562927605,20.0,167.99,167.85,10.91146053]
[1729562928381,5.9541,167.96,167.86,23.776884]
[1729562928685,16.5914,168.0,167.88,23.776884]
[1729562928686,22.4441,168.0,167.88,23.776884]
[1729562929089,16.4914,168.0,167.88,10.91146053]
[1729562929290,5.9531,167.98,167.88,34.68834453]
[1729562929687,5.9542,167.95,167.88,34.68834453]
[1729562929889,5.9542,167.95,167.85,10.91146053]
[1729562930376,20.0,167.99,167.85,10.91146053]
[1729562930603,20.1,167.99,167.85,10.91146053]
[1729562930898,5.9539,167.96,167.85,10.91146053]
[1729562931394,20.0,167.99,167.88,23.776884]
[1729562931601,16.4914,168.0,167.88,23.776884]
[1729562931987,16.4914,168.0,167.88,34.68834453]
[1729562932384,5.9529,167.99,167.88,34.68834453]
[1729562932794,16.4914,168.0,167.88,23.776884]
[1729562933106,5.9542,167.95,167.88,23.776884]
[1729562933603,5.9552,167.92,167.83,6.22282141]
[1729562933777,15.7474,167.93,167.83,6.22282141]
[1729562934095,5.9562,167.9,167.8,16.0577]
[1729562934283,6.5713836,167.89,167.8,22.28275885]
[1729562935996,5.9569,167.88,167.8,6.22505885]
[1729562936300,6.5712836,167.89,167.8,6.22505885]
[1729562937401,6.5712836,167.89,167.81,23.776884]
[1729562938198,0.6150836,167.89,167.81,23.776884]
[1729562939412,5.9568,167.88,167.81,23.776884]
[1729562942193,0.6150836,167.89,167.8,6.22505885]
[1729562942397,5.958,167.85,167.8,6.22505885]
[1729562942601,5.9573,167.86,167.75,16.079]
[1729562942787,5.9575,167.86,167.77,6.22641511]
[1729562943485,5.9575,167.86,167.78,23.776884]
[1729562944210,5.9578,167.85,167.77,6.22641511]
[1729562945402,5.9595,167.8,167.77,6.22641511]
[1729562945599,5.9594,167.8,167.71,15.3559]
[1729562945815,5.9594,167.8,167.71,21.58407724]
[1729562945996,15.3953,167.86,167.75,10.91146053]
[1729562946196,0.6150836,167.89,167.79,26.26736053]
[1729562946895,0.6150836,167.89,167.8,23.776884]
[1729562947097,6.5713836,167.89,167.8,23.776884]
[1729562948197,5.9573,167.87,167.77,12.12718127]
[1729562948396,5.9573,167.87,167.78,23.776884]
[1729562948600,0.6150836,167.89,167.78,23.776884]
[1729562948918,5.9566,167.88,167.78,34.68834453]
[1729562949802,5.9566,167.88,167.78,42.55682855]
[1729562950207,5.9566,167.88,167.8,10.91146053]
[1729562950509,0.6150836,167.89,167.81,23.776884]
[1729562950895,0.6150836,167.89,167.83,23.776884]
[1729562953302,5.9566,167.88,167.77,6.2762]
[1729562953517,5.9566,167.88,167.78,10.91146053]
[1729562954022,5.9566,167.88,167.8,10.91146053]
[1729562954321,5.9566,167.88,167.77,29.18676463]
[1729562954798,5.9566,167.88,167.78,23.776884]
[1729562955827,0.6150836,167.89,167.78,23.776884]
[1729562956004,5.9566,167.88,167.78,23.776884]
[1729562956404,5.9573,167.86,167.77,23.776884]
[1729562956604,5.9573,167.86,167.77,29.62994653]
[1729562956802,5.9566,167.88,167.76,5.85306253]
[1729562957001,5.9576,167.86,167.76,5.85306253]
[1729562957503,0.7150836,167.89,167.76,5.85306253]
[1729562957703,5.9577,167.85,167.76,5.85306253]
[1729562959323,0.6150836,167.89,167.84,17.0575021]
[1729562959529,0.6150836,167.89,167.88,23.776884]
[1729562959729,0.6150836,167.89,167.88,32.76991379]
[1729562960826,0.6150836,167.89,167.88,33.96055012]
[1729562961905,0.6150836,167.89,167.88,32.76991379]
[1729562966305,0.6150836,167.89,167.88,40.8343861]
[1729562973240,0.6150836,167.89,167.86,1.19074723]
[1729562973241,0.6150836,167.89,167.87,23.776884]
[1729562973739,0.6150836,167.89,167.86,17.0575021]
[1729562974334,0.6150836,167.89,167.85,8.99302979]
[1729562974640,0.6150836,167.89,167.83,15.2922]
[1729562975734,0.6150836,167.89,167.84,23.776884]
[1729562982317,0.6150836,167.89,167.86,47.4840861]
[1729562982512,0.6150836,167.89,167.87,20.0]
[1729562982736,0.6150836,167.89,167.88,40.8343861]
[1729562982924,0.6150836,167.89,167.87,23.776884]
[1729562988745,0.6150836,167.89,167.87,24.96777402]
[1729562989439,0.6150836,167.89,167.87,23.776884]
[1729562990333,0.6150836,167.89,167.88,10.90489436]
[1729562990647,0.6150836,167.89,167.88,34.68177836]
[1729562997148,0.6150836,167.89,167.88,35.87265582]
[1729562997555,0.6150836,167.89,167.88,34.68177836]
[1729562998663,21.3736,168.0,167.89,43.776884]
[1729562998860,21.3736,168.0,167.95,23.776884]
[1729563002660,21.3736,168.0,167.91,23.776884]
[1729563002962,21.3736,168.0,167.94,23.276884]
[1729563003343,21.3736,168.0,167.93,10.90489436]
[1729563004768,21.3736,168.0,167.9,1.19054452]
[1729563004970,21.3736,168.0,167.87,20.1]
[1729563005141,21.3736,168.0,167.9,10.90489436]
[1729563006158,21.3736,168.0,167.91,23.776884]
[1729563007069,21.3736,168.0,167.9,10.90489436]
[1729563007274,5.9527,167.99,167.88,10.90489436]
[1729563008368,5.9537,167.97,167.89,23.776884]
[1729563008574,5.953,167.99,167.89,23.776884]
[1729563009472,5.953,167.99,167.88,10.90489436]
[1729563010983,5.953,167.98,167.86,6.22035542]
[1729563011275,5.9537,167.96,167.86,6.22035542]
[1729563012278,12.5503,167.95,167.86,6.22035542]
[1729563014162,6.5961,167.95,167.86,6.22035542]
[1729563014373,16.0525,167.91,167.86,6.22035542]
[1729563014549,22.0082,167.91,167.8,10.90489436]
[1729563014748,22.0082,167.91,167.8,17.1297139]
[1729563015555,22.0082,167.91,167.81,23.776884]
[1729563016674,12.5455,167.89,167.8,6.22481954]
[1729563016854,12.5455,167.89,167.77,32.87299436]
[1729563017051,12.5455,167.89,167.77,39.09745717]
[1729563017052,5.9566,167.88,167.77,39.09745717]
[1729563017665,5.9566,167.88,167.77,28.19256281]
[1729563017965,5.9566,167.88,167.78,23.776884]
[1729563018277,5.957,167.87,167.78,23.776884]
[1729563018579,6.5893,167.89,167.77,6.22446281]
[1729563019168,15.9537,167.88,167.77,6.22446281]
[1729563019372,5.9577,167.85,167.77,6.22446281]
[1729563019577,16.0537,167.88,167.73,22.08]
[1729563019884,5.9594,167.81,167.74,6.22625418]
[1729563020061,5.9595,167.8,167.69,6.4819]
[1729563020267,5.9598,167.79,167.69,6.4819]
[1729563020569,5.9598,167.79,167.69,6.22539225]
[1729563021857,0.1,167.8,167.69,6.22539225]
[1729563022070,5.9606,167.77,167.69,6.22539225]
[1729563022267,5.9606,167.77,167.65,6.4819]
[1729563022463,20.0,167.81,167.66,6.22659582]
[1729563022670,5.9602,167.78,167.66,6.22659582]
[1729563023275,5.9602,167.78,167.67,23.776884]
[1729563027296,20.0,167.81,167.67,23.776884]
[1729563027591,5.9598,167.79,167.67,23.776884]
[1729563028667,5.9602,167.78,167.67,23.776884]
[1729563029769,20.1,167.81,167.67,23.776884]
[1729563029986,5.9613,167.75,167.66,6.22659582]
[1729563030178,21.912,167.75,167.66,6.22659582]
[1729563032998,15.9507,167.75,167.67,23.776884]
[1729563034982,5.9618,167.74,167.66,6.22659582]
[1729563035181,5.9619,167.73,167.66,6.22659582]
[1729563035380,5.9625,167.72,167.66,6.22659582]
[1729563036089,5.9619,167.73,167.66,6.22659582]
[1729563036289,5.9624,167.72,167.66,6.22659582]
[1729563036508,5.9624,167.72,167.61,6.4139]
[1729563036681,5.9624,167.72,167.62,43.776884]
[1729563037595,5.9628,167.71,167.61,12.64192159]
[1729563038200,5.9631,167.7,167.61,12.64192159]
[1729563038393,16.3375,167.8,167.69,17.08770784]
[1729563038692,16.3375,167.8,167.71,17.08770784]
[1729563039579,16.3375,167.8,167.72,23.776884]
[1729563040198,22.0071,167.84,167.72,23.776884]
[1729563040595,16.0491,167.84,167.72,23.776884]
[1729563043187,22.0071,167.84,167.72,23.776884]
[1729563043510,16.0491,167.84,167.72,23.776884]
[1729563047992,5.9589,167.82,167.71,17.08770784]
[1729563049380,16.0491,167.84,167.71,17.08770784]
[1729563049381,5.9586,167.83,167.72,23.776884]
[1729563049709,16.0491,167.84,167.72,23.776884]
[1729563049903,5.9588,167.82,167.72,23.776884]
[1729563050111,16.0491,167.84,167.73,17.08770784]
[1729563050291,22.0071,167.84,167.74,23.776884]
[1729563054384,5.9585,167.83,167.75,10.92403947]
[1729563054590,5.959,167.82,167.73,10.92403947]
[1729563054813,5.9594,167.8,167.71,10.92403947]
[1729563055020,20.1,167.83,167.71,10.92403947]
[1729563055309,5.9597,167.8,167.71,10.92403947]
[1729563056297,5.9597,167.8,167.68,15.5396]
[1729563056298,5.9597,167.8,167.68,32.6165343]
[1729563056511,5.9597,167.8,167.69,43.776884]
[1729563056814,16.0491,167.84,167.7,17.0769343]
[1729563056991,5.9591,167.82,167.72,17.0769343]
[1729563057304,5.9591,167.82,167.73,23.776884]
[1729563058513,20.0,167.83,167.7,17.0769343]
[1729563058695,5.9595,167.8,167.71,23.776884]
[1729563058900,5.9587,167.82,167.71,23.776884]
[1729563059204,23.876884,167.78,167.67,6.22480539]
[1729563059411,5.9616,167.74,167.62,15.1014]
[1729563059598,5.9619,167.73,167.62,15.1014]
[1729563059912,6.625,167.75,167.62,21.32893665]
[1729563060098,5.9616,167.74,167.62,21.32893665]
[1729563060413,5.962,167.73,167.62,21.32893665]
[1729563060589,5.962,167.73,167.63,23.776884]
[1729563061316,5.9619,167.74,167.63,20.0]
[1729563061614,5.9619,167.73,167.63,20.0]
[1729563062488,5.9619,167.73,167.64,23.776884]
[1729563067509,5.9619,167.73,167.63,23.776884]
[1729563069726,25.9617,167.74,167.63,23.776884]
[1729563070218,5.962,167.73,167.63,23.776884]
[1729563073223,5.9626,167.72,167.63,23.776884]
[1729563073425,5.9632,167.7,167.62,15.1014]
[1729563073609,5.9632,167.7,167.61,6.0172]
[1729563074412,25.9627,167.71,167.61,6.0172]
[1729563074727,25.9627,167.71,167.62,23.776884]
[1729563079027,20.0,167.74,167.62,34.71920851]
[1729563079225,5.9617,167.74,167.65,23.776884]
[1729563080222,12.5863,167.75,167.66,10.94232451]
[1729563080427,21.8954,167.8,167.65,40.86307977]
[1729563080600,27.8549,167.8,167.65,40.86307977]
[1729563080807,5.9598,167.79,167.65,40.86307977]
[1729563081001,27.8551,167.8,167.68,6.1156]
[1729563081321,27.8551,167.8,167.68,29.892484]
[1729563081515,21.679,167.8,167.7,23.776884]
[1729563081922,6.3884,167.84,167.7,23.776884]
[1729563081923,5.9587,167.83,167.71,15.7557]
[1729563082111,5.9587,167.83,167.72,23.776884]
[1729563083628,6.2884,167.84,167.73,17.08619577]
[1729563083820,21.777,167.85,167.74,23.776884]
[1729563084703,15.819,167.85,167.74,23.776884]
[1729563084910,5.9574,167.86,167.76,23.776884]
[1729563085413,5.9577,167.85,167.76,23.776884]
[1729563086230,5.9584,167.83,167.75,6.0501]
[1729563086533,5.9584,167.83,167.72,23.776884]
[1729563088035,5.9594,167.8,167.71,21.8114]
[1729563088204,20.0,167.81,167.71,21.8114]
[1729563088406,5.9583,167.84,167.72,17.08619577]
[1729563088626,20.0,167.85,167.74,17.08619577]
[1729563088813,25.9577,167.85,167.74,17.08619577]
[1729563089015,20.0,167.85,167.74,17.08619577]
[1729563089232,5.958,167.84,167.75,23.776884]
[1729563090927,5.9584,167.83,167.75,23.776884]
[1729563091231,5.9589,167.82,167.75,23.776884]
[1729563091430,20.0,167.85,167.75,23.776884]
[1729563091631,5.9585,167.83,167.75,23.776884]
[1729563091831,5.959,167.82,167.72,23.776884]
[1729563092023,20.0,167.85,167.72,23.776884]
[1729563092224,5.9591,167.81,167.72,23.776884]
[1729563093233,5.9594,167.8,167.72,23.776884]
[1729563095441,0.1,167.84,167.71,21.8114]
[1729563095655,5.9594,167.81,167.71,21.8114]
[1729563095939,5.9595,167.8,167.71,21.8114]
[1729563096235,5.9594,167.81,167.71,21.8114]
[1729563096742,5.958,167.84,167.72,40.86307977]
[1729563096949,20.0,167.83,167.72,40.86307977]
[1729563097240,20.0,167.83,167.71,21.8114]
[1729563097241,16.1966,167.86,167.77,23.776884]
[1729563097534,5.9577,167.85,167.77,23.776884]
[1729563104744,5.9573,167.86,167.77,39.663684]
[1729563105244,20.0,167.89,167.79,23.776884]
[1729563105550,5.9566,167.89,167.81,23.776884]
[1729563105844,15.7555,167.9,167.81,23.776884]
[1729563106040,21.7114,167.9,167.81,23.776884]
[1729563106545,30.6461,167.9,167.79,23.776884]
[1729563106851,5.9566,167.88,167.79,23.776884]
[1729563107545,5.9572,167.87,167.79,23.776884]
[1729563110143,5.9574,167.86,167.79,23.776884]
[1729563110344,20.0,167.87,167.77,15.8868]
[1729563110541,5.9582,167.84,167.77,15.8868]
[1729563112736,5.9588,167.82,167.75,23.776884]
[1729563113139,5.9584,167.83,167.75,23.776884]
[1729563113334,20.0,167.87,167.75,23.776884]
[1729563113547,20.0,167.84,167.74,6.1275]
[1729563114248,5.9591,167.82,167.74,6.1275]
[1729563115760,5.9597,167.8,167.73,16.6162]
[1729563120358,35.1237,167.84,167.73,16.6162]
[1729563120559,5.9598,167.79,167.71,23.776884]
[1729563122157,5.9602,167.78,167.7,6.3835]
[1729563122360,23.876884,167.83,167.7,6.3835]
[1729563122551,5.9598,167.79,167.7,6.3835]
[1729563124459,20.0,167.78,167.69,6.22686674]
[1729563124640,20.0,167.78,167.66,6.3602]
[1729563124844,34.9006,167.78,167.66,6.3602]
[1729563125147,34.9006,167.78,167.65,15.973]
[1729563125148,5.9621,167.73,167.65,15.973]
[1729563125649,5.9626,167.72,167.65,15.973]
[1729563128189,5.9623,167.72,167.65,15.973]
[1729563131994,15.0022,167.76,167.63,6.23006703]
[1729563132274,20.1,167.75,167.63,6.23006703]
[1729563132447,5.9631,167.7,167.63,6.23006703]
[1729563132648,5.9631,167.7,167.62,6.3602]
[1729563133054,20.0,167.71,167.62,6.3602]
[1729563133472,25.9629,167.71,167.62,6.3602]
[1729563134549,5.9631,167.7,167.62,6.3602]
[1729563134747,20.0,167.71,167.61,15.1988]
[1729563134748,5.9639,167.68,167.61,15.1988]
[1729563134956,5.9634,167.69,167.61,15.1988]
[1729563135753,5.9638,167.68,167.61,15.1988]
[1729563135954,5.9644,167.67,167.58,12.59557271]
[1729563137051,5.9644,167.67,167.59,23.776884]
[1729563138253,5.9647,167.66,167.58,12.59557271]
[1729563138658,5.9649,167.65,167.58,6.22797271]
[1729563138868,5.9649,167.65,167.57,16.6644]
[1729563140698,0.1,167.68,167.57,16.6644]
[1729563140862,5.9654,167.64,167.57,16.6644]
[1729563141563,5.9655,167.63,167.57,16.6644]
[1729563142573,5.9655,167.63,167.54,23.38015937]
[1729563142887,5.9655,167.63,167.55,23.776884]
[1729563143286,5.966,167.62,167.54,17.14979031]
[1729563143587,5.9662,167.61,167.53,15.9213]
[1729563144364,48.4821,167.66,167.53,15.9213]
[1729563144365,20.0,167.65,167.53,15.9213]
[1729563144673,5.9658,167.62,167.53,15.9213]
[1729563146578,5.9653,167.64,167.56,10.95039031]
[1729563155092,5.9647,167.66,167.58,10.95039031]
[1729563155724,5.9648,167.65,167.57,23.776884]
[1729563155873,20.0,167.67,167.56,6.6586]
[1729563155874,5.9658,167.63,167.56,6.6586]
[1729563158091,16.0775,167.7,167.56,17.60899031]
[1729563158394,5.9646,167.66,167.58,10.95039031]
[1729563158888,29.840184,167.69,167.56,6.6586]
[1729563159070,14.911,167.67,167.56,6.6586]
[1729563159281,5.9657,167.63,167.56,6.6586]
[1729563159990,5.9651,167.64,167.56,17.60899031]
[1729563161996,15.9775,167.7,167.58,10.95039031]
[1729563162196,21.9406,167.7,167.6,26.61819031]
[1729563162500,5.9631,167.7,167.62,10.95039031]
[1729563164408,5.9631,167.7,167.64,10.95039031]
[1729563168800,5.9625,167.72,167.64,10.95039031]
[1729563168996,25.9619,167.73,167.66,10.95039031]
[1729563169715,20.0,167.73,167.66,10.95039031]
[1729563169882,5.9624,167.72,167.66,10.95039031]
[1729563170085,5.9624,167.72,167.64,10.95039031]
[1729563170384,5.9624,167.72,167.66,10.95039031]
[1729563174623,5.9626,167.71,167.66,10.95039031]
[1729563177914,20.0,167.73,167.63,10.95039031]
[1729563178087,5.9638,167.68,167.61,10.95039031]
[1729563186523,5.964,167.68,167.61,10.95039031]
[1729563188923,5.9634,167.69,167.61,10.95039031]
[1729563189633,5.9626,167.71,167.6,15.6678]
[1729563189818,20.0,167.7,167.6,10.95039031]
[1729563190203,20.0,167.68,167.6,10.95039031]
[1729563190429,25.9639,167.68,167.6,10.95039031]
[1729563191314,20.0,167.68,167.62,10.95039031]
[1729563191516,5.9632,167.7,167.62,10.95039031]
[1729563191717,20.0,167.7,167.64,10.95039031]
[1729563191922,5.9627,167.71,167.64,10.95039031]
[1729563192410,5.9627,167.71,167.66,10.95039031]
[1729563194929,5.9627,167.71,167.63,23.776884]
[1729563195222,5.9627,167.71,167.64,10.95039031]
[1729563196925,5.9619,167.73,167.66,10.95039031]
[1729563197109,16.277,167.74,167.66,10.95039031]
[1729563197300,5.9624,167.72,167.66,10.95039031]
[1729563199802,16.277,167.74,167.66,10.95039031]
[1729563200006,5.9619,167.73,167.66,10.95039031]
[1729563200423,5.962,167.73,167.66,10.95039031]
[1729563201830,5.962,167.73,167.65,23.776884]
[1729563202015,5.962,167.73,167.67,10.95039031]
[1729563203242,5.9623,167.72,167.67,10.95039031]
[1729563210521,5.962,167.73,167.67,10.95039031]
[1729563210718,5.9605,167.77,167.67,10.95039031]
[1729563210924,20.0,167.76,167.67,10.95039031]
[1729563211743,5.9619,167.73,167.65,23.776884]
[1729563211923,14.9031,167.75,167.65,34.72727431]
[1729563212244,5.9633,167.7,167.64,6.0125]
[1729563212625,5.9633,167.7,167.63,10.95039031]
[1729563212819,5.9635,167.69,167.63,10.95039031]
[1729563213127,5.9637,167.68,167.62,15.4146]
[1729563215317,5.9637,167.68,167.62,26.36499031]
[1729563216225,22.5535,167.73,167.62,26.36499031]
[1729563216545,5.9635,167.69,167.62,26.36499031]
[1729563216717,5.963,167.7,167.62,15.4146]
[1729563216915,5.963,167.7,167.63,23.776884]
[1729563217118,5.963,167.7,167.64,10.95039031]
[1729563217430,25.9626,167.72,167.64,10.95039031]
[1729563217632,5.9627,167.71,167.64,10.95039031]
[1729563222529,20.0,167.72,167.64,10.95039031]
[1729563222733,5.963,167.7,167.64,10.95039031]
[1729563228145,5.963,167.7,167.63,23.776884]
[1729563232062,5.9639,167.68,167.62,15.4146]
[1729563232237,5.9644,167.67,167.6,6.2545]
[1729563234037,5.9644,167.67,167.6,21.7545]
[1729563234459,5.9633,167.7,167.61,34.72727431]
[1729563234665,5.9635,167.69,167.61,34.72727431]
[1729563235456,5.9635,167.69,167.61,23.776884]
[1729563235766,5.9635,167.69,167.61,34.72727431]
[1729563242064,37.4592,167.73,167.63,10.95039031]
[1729563242268,5.9626,167.71,167.63,10.95039031]
[1729563242471,5.9626,167.71,167.64,10.95039031]
[1729563246069,22.5535,167.73,167.64,10.95039031]
[1729563246270,5.9612,167.75,167.66,10.95039031]
[1729563246460,20.0,167.76,167.68,10.95039031]
[1729563247570,25.9609,167.76,167.68,10.95039031]
[1729563248073,5.9597,167.8,167.72,10.95039031]
[1729563248856,27.6026,167.81,167.72,10.95039031]
[1729563249162,21.6435,167.81,167.72,10.95039031]
[1729563249365,5.9595,167.8,167.72,10.95039031]
[1729563251964,20.0,167.82,167.74,10.95039031]
[1729563252273,27.5092,167.85,167.76,10.95039031]
[1729563252467,5.9581,167.84,167.76,10.95039031]
[1729563253058,21.5515,167.85,167.76,10.95039031]